[Event "44th Chess Olympiad Women 2022"]
[Site "Chennai"]
[Date "2022.08.01"]
[Round "4.17"]
[White "Vo, Thi Kim Phung"]
[Black "Gomez Barrera, Javiera Belen"]
[Result "1-0"]
[WhiteElo "2333"]
[BlackElo "2210"]
[Annotator "TA"]
[PlyCount "101"]
[EventDate "2022.??.??"]
[TimeControl "60"]

{[%evp 19,101,6,20,-8,0,0,0,0,23,20,18,22,22,17,17,8,11,8,27,10,10,14,21,0,10,
10,10,10,10,10,10,10,10,10,10,10,52,59,59,52,55,41,41,41,44,41,47,47,51,52,77,
77,256,242,190,52,146,146,146,146,146,146,146,146,146,146,29967,29968,29972,
29972,29971,29969,29971,29974,29974,29975,29985,29986,29986,29987,29987,29988,
29988,29989]} 1. d4 {[%emt 0:00:04]} Nf6 {[%emt 0:00:20]} 2. c4 {[%emt 0:00:09]
} g6 {[%emt 0:00:07]} 3. Nc3 {[%emt 0:00:07]} d5 {[%emt 0:00:11]} 4. cxd5 {
[%emt 0:00:09]} Nxd5 {[%emt 0:00:05]} 5. e4 {[%emt 0:00:09]} Nxc3 {[%emt 0:00:
00]} 6. bxc3 {[%emt 0:00:07]} Bg7 {[%emt 0:00:18]} 7. Bc4 {[%emt 0:00:13]} c5 {
[%emt 0:00:10]} 8. Ne2 {[%emt 0:00:12]} Nc6 {[%emt 0:00:24]} 9. Be3 {[%emt 0:
00:00]} O-O {[%emt 0:00:05]} 10. O-O {[%emt 0:00:12]} b6 {[%emt 0:00:13] 10...
Bg4 is setting a new trend.} 11. Bd5 {[%emt 0:06:06] D87: Exchange Grünfeld:
Classical Line: Variations without ...cxd4.} Bb7 {[%emt 0:16:55][%cal Yc8b7,
Yb7c6,Yc6b5,Yb5c4]} 12. dxc5 {[%emt 0:00:51]} e6 {[%emt 0:01:35]} 13. Bxc6 {
[%emt 0:10:47] [#] The position is equal.} Qxd1 $146 {[%emt 0:24:08]} ({
Predecessor:} 13... Bxc6 14. f3 Bb5 15. Re1 bxc5 16. Bxc5 Qxd1 17. Raxd1 Rfc8
18. Bd4 Bxd4+ 19. Nxd4 Bc4 20. Rd2 e5 21. Ne2 Rab8 22. Ng3 Rb5 23. Nf1 Bxf1 24.
Kxf1 Rxc3 25. Kf2 {½-½ (25) Matthes,A (2198)-Tschernatsch,J (2251) Willingen
2020}) 14. Rfxd1 {[%emt 0:00:18]} Bxc6 {[%emt 0:00:05]} 15. cxb6 {[%emt 0:00:
00]} axb6 {[%emt 0:01:02]} 16. f3 {[%emt 0:03:31]} Bb5 {[%emt 0:06:54]} 17. Nd4
{[%emt 0:01:36]} Bc4 {[%emt 0:00:10]} 18. a4 {[%emt 0:01:57]} Ra6 {[%emt 0:00:
00]} 19. Rab1 {[%emt 0:14:12]} Rc8 {[%emt 0:16:01] [#]} 20. Nc6 $1 {[%emt 0:00:
00] Ne7+ is the strong threat.} Kf8 {[%emt 0:05:47] Prevents Ne7.} (20... Rxc6
21. Rd8+ Bf8 22. Bh6) 21. Rd6 {[%emt 0:04:39]} (21. a5 $5 {[%cal Ra5b6]} b5 22.
Na7 $14 (22. Bc5+ Ke8 $11)) 21... Ke8 {[%emt 0:05:55]} 22. Rbd1 {[%emt 0:02:03]
Rd8+ would kill now.} ({Don't play} 22. Bxb6 Bf8 23. Rd4 (23. Rd8+ $2 Rxd8 24.
Bxd8 Bc5+ 25. Kh1 Rxc6 $19) 23... Rxc6 24. Rd8+ Ke7 $17) 22... Raa8 $1 {
[%emt 0:00:51]} 23. Bxb6 {[%emt 0:11:07] Strongly threatening Na7.} Bb3 $1 {
[%emt 0:00:10] This bishop pair is nice.} 24. Rd8+ {[%emt 0:16:22]} Rxd8 {
[%emt 0:00:03]} 25. Rxd8+ {[%emt 0:00:06]} Rxd8 {[%emt 0:00:04]} 26. Nxd8 {
[%emt 0:00:06]} Bxa4 $11 {[%emt 0:00:20] Endgame KBB-KBN} 27. c4 {[%emt 0:00:
19]} Bd4+ {[%emt 0:01:37]} 28. Bxd4 {[%emt 0:00:06]} Kxd8 $14 {[%emt 0:00:01]
KB-KB} 29. Bf6+ {[%emt 0:01:17]} Kd7 {[%emt 0:00:11]} 30. e5 {[%emt 0:06:18]}
Kc6 {[%emt 0:01:11]} 31. Be7 {[%emt 0:00:11]} Bb3 {[%emt 0:00:00]} 32. c5 {
[%emt 0:00:02]} Kd5 {[%emt 0:00:42]} 33. Bd6 {[%emt 0:01:10]} Ba4 {[%emt 0:00:
00]} 34. Kf2 {[%emt 0:00:46]} Kd4 {[%emt 0:02:32]} 35. Kg3 {[%emt 0:01:25]
Black must now prevent Kf4.} Bc6 $2 {[%emt 0:06:57]} (35... Ke3 $16 {was
necessary.}) 36. Kf4 $18 {[%emt 0:00:25] Threatens to win with Kg5.} h6 {
[%emt 0:00:59] [#]} 37. h4 {[%emt 0:01:30]} (37. Bf8 $1 $18 {[%cal Rf8h6]})
37... Bb7 {[%emt 0:00:55] [#]} (37... Bb5 $14) 38. Bf8 $1 $16 {[%emt 0:05:11]}
g5+ {[%emt 0:00:31]} 39. hxg5 {[%emt 0:00:19]} hxg5+ {[%emt 0:00:01]} 40. Kxg5
{[%emt 0:00:06] Intending Kf6 and mate.} Kxe5 {[%emt 0:00:52]} 41. Bd6+ {
[%emt 0:30:11]} Kd5 {[%emt 0:18:28]} 42. Kf6 {[%emt 0:00:00]} Kc6 $2 {[%emt 0:
00:00]} (42... e5 $16 43. Kxf7 Ba6) 43. Kxf7 {[%emt 0:00:00] White mates.} Kd7
{[%emt 0:00:01]} 44. Kf6 {[%emt 0:00:00]} Bd5 {[%emt 0:00:56]} 45. Be5 {
[%emt 0:00:00]} Ke8 {[%emt 0:01:37]} 46. g4 {[%emt 0:00:00][%cal Yg2g4,Yg4g5,
Yg5g6,Yg6g7]} Bxf3 {[%emt 0:02:08]} 47. g5 {[%emt 0:00:00]} Bg4 {[%emt 0:02:46]
} 48. g6 {[%emt 0:00:00]} Bf5 {[%emt 0:01:51]} 49. c6 {[%emt 0:00:00][%cal
Yc5c6,Yc6c7]} Be4 {[%emt 0:02:10]} 50. g7 {[%emt 0:00:00][%cal Rg7g8]} Bh7 {
[%emt 0:00:13]} 51. c7 {[%emt 0:00:00] Weighted Error Value: White=0.10 (very
precise) /Black=0.28 (precise)} 1-0

[Event "44th Chess Olympiad Women 2022"]
[Site "Chennai"]
[Date "2022.08.01"]
[Round "4.18"]
[White "Raccanello, Marianna"]
[Black "Perez Hernandez, Vicmary C."]
[Result "1-0"]
[WhiteElo "2067"]
[BlackElo "1862"]
[Annotator "NA RC"]
[PlyCount "57"]
[EventDate "2022.??.??"]
[TimeControl "60"]

1. e4 {[%emt 0:00:05]} c5 {[%emt 0:01:26]} 2. Nf3 {[%emt 0:00:06]} Nc6 {
[%emt 0:00:16]} 3. d4 {[%emt 0:00:05]} cxd4 {[%emt 0:00:14]} 4. Nxd4 {[%emt 0:
00:00]} g6 {[%emt 0:00:43]} 5. c4 {[%emt 0:00:46]} Bg7 {[%emt 0:00:27]} 6. Be3
{[%emt 0:00:10]} d6 {[%emt 0:02:40]} 7. Nc3 {[%emt 0:00:44]} Nf6 {[%emt 0:00:
00]} 8. Be2 {[%emt 0:00:41]} O-O {[%emt 0:00:36]} 9. Qd2 {[%emt 0:01:16]} Nxd4
{[%emt 0:06:31]} 10. Bxd4 {[%emt 0:00:55]} Be6 {[%emt 0:00:07]} 11. O-O {
[%emt 0:04:11]} Rc8 {[%emt 0:04:36]} 12. b3 {[%emt 0:01:50]} a6 {[%emt 0:02:19]
} 13. f4 {[%emt 0:03:20]} Qa5 {[%emt 0:08:46]} 14. Qd3 {[%emt 0:04:03]} Bg4 {
[%emt 0:19:52]} 15. Bxg4 {[%emt 0:04:47]} Nxg4 {[%emt 0:00:03]} 16. Nd5 {
[%emt 0:05:39]} Bxd4+ {[%emt 0:23:28]} 17. Qxd4 {[%emt 0:01:23]} e5 {[%emt 0:
00:00]} 18. Qb2 {[%emt 0:22:31]} Qc5+ {[%emt 0:00:25]} 19. Kh1 {[%emt 0:00:10]}
Rcd8 {[%emt 0:09:47]} 20. Rae1 {[%emt 0:09:57]} f6 {[%emt 0:05:02]} 21. h3 {
[%emt 0:01:53]} Nh6 {[%emt 0:00:02]} 22. fxe5 {[%emt 0:12:10]} fxe5 {[%emt 0:
00:00]} 23. Qd2 {[%emt 0:00:15]} Kg7 {[%emt 0:04:13]} 24. Qg5 {[%emt 0:00:30]}
Rde8 {[%emt 0:02:29]} 25. Nf6 {[%emt 0:04:43]} Rd8 {[%emt 0:02:34]} 26. Nh5+ {
[%emt 0:00:07]} Kg8 {[%emt 0:00:54]} 27. Rf6 {[%emt 0:04:58]} Nf7 {[%emt 0:00:
00]} 28. Rxg6+ {[%emt 0:00:19]} Kh8 {[%emt 0:00:01]} 29. Qf6# {[%emt 0:00:08]}
1-0

[Event "44th Chess Olympiad Women 2022"]
[Site "Chennai"]
[Date "2022.08.01"]
[Round "4.18"]
[White "Rovira Contreras, Tairu Manuela"]
[Black "Gueci, Tea"]
[Result "0-1"]
[WhiteElo "2036"]
[BlackElo "2254"]
[Annotator "NA RC"]
[PlyCount "96"]
[EventDate "2022.??.??"]
[TimeControl "60"]

1. d4 {[%emt 0:00:09]} d5 {[%emt 0:00:03]} 2. c4 {[%emt 0:00:40]} e6 {[%emt 0:
00:00]} 3. Nf3 {[%emt 0:00:20]} Nf6 {[%emt 0:00:09]} 4. Nc3 {[%emt 0:00:55]} c6
{[%emt 0:00:06]} 5. e3 {[%emt 0:00:53]} a6 {[%emt 0:00:08]} 6. Bd3 {[%emt 0:00:
00]} dxc4 {[%emt 0:00:15]} 7. Bxc4 {[%emt 0:00:06]} b5 {[%emt 0:00:11]} 8. Be2
{[%emt 0:01:52]} Nbd7 {[%emt 0:01:43]} 9. O-O {[%emt 0:05:05]} c5 {[%emt 0:00:
00]} 10. a3 {[%emt 0:12:52]} Bb7 {[%emt 0:02:13]} 11. dxc5 {[%emt 0:06:35]}
Bxc5 {[%emt 0:02:24]} 12. b4 {[%emt 0:06:37]} Be7 {[%emt 0:02:36]} 13. Qb3 {
[%emt 0:03:09]} Nd5 {[%emt 0:07:16]} 14. Bb2 {[%emt 0:03:11]} O-O {[%emt 0:00:
00]} 15. Rfd1 {[%emt 0:01:36]} Qe8 {[%emt 0:12:23]} 16. Rac1 {[%emt 0:06:09]}
Rc8 {[%emt 0:03:01]} 17. Nb1 {[%emt 0:15:22]} Rxc1 {[%emt 0:04:51]} 18. Rxc1 {
[%emt 0:00:23]} Qa8 {[%emt 0:00:35]} 19. Bd4 {[%emt 0:05:53]} N5b6 {[%emt 0:00:
00]} 20. Qb2 {[%emt 0:05:51]} f6 {[%emt 0:08:01]} 21. Nbd2 {[%emt 0:08:20]} e5
{[%emt 0:02:38]} 22. Bxb6 {[%emt 0:03:58]} Nxb6 {[%emt 0:00:05]} 23. Nb3 {
[%emt 0:00:21]} Bd5 {[%emt 0:02:05]} 24. Ne1 {[%emt 0:02:06]} Nc4 {[%emt 0:00:
00]} 25. Bxc4 {[%emt 0:01:34]} Bxc4 {[%emt 0:01:10]} 26. Na5 {[%emt 0:01:27]}
Bd5 {[%emt 0:02:31]} 27. Qc3 {[%emt 0:01:32]} Re8 {[%emt 0:03:52]} 28. f3 {
[%emt 0:03:25]} Bd8 {[%emt 0:02:17]} 29. Nb3 {[%emt 0:00:53]} Bb6 {[%emt 0:00:
00]} 30. Kh1 {[%emt 0:00:44]} Rd8 {[%emt 0:02:11]} 31. Nd2 {[%emt 0:00:35]} Qa7
{[%emt 0:01:54]} 32. Nc2 {[%emt 0:00:58]} h6 {[%emt 0:01:53]} 33. Re1 {[%emt 0:
00:00]} Qb7 {[%emt 0:02:27]} 34. h3 {[%emt 0:00:25]} Rc8 {[%emt 0:01:26]} 35.
Qd3 {[%emt 0:00:14]} Rd8 {[%emt 0:01:44]} 36. Qc3 {[%emt 0:00:36]} Qc6 {
[%emt 0:00:48]} 37. Qb2 {[%emt 0:00:48]} Rc8 {[%emt 0:01:04]} 38. Na1 {[%emt 0:
00:00]} Qc3 {[%emt 0:01:56]} 39. Qxc3 {[%emt 0:00:20]} Rxc3 {[%emt 0:00:06]}
40. e4 {[%emt 0:00:57]} Ba2 {[%emt 0:02:30]} 41. Nb1 {[%emt 0:10:19]} Rc6 {
[%emt 0:03:02]} 42. Rd1 {[%emt 0:04:50]} Kf7 {[%emt 0:03:25]} 43. Kh2 {[%emt 0:
00:00]} Ke6 {[%emt 0:00:57]} 44. Kg3 {[%emt 0:00:46]} Bd4 {[%emt 0:01:40]} 45.
Nd2 {[%emt 0:00:33]} Rd6 {[%emt 0:03:15]} 46. Nc2 {[%emt 0:03:18]} Bc3 {
[%emt 0:00:31]} 47. Nb1 {[%emt 0:00:18]} Rxd1 {[%emt 0:00:29]} 48. Nxc3 {
[%emt 0:00:04]} Rc1 {[%emt 0:00:23]} 0-1

[Event "44th Chess Olympiad Women 2022"]
[Site "Chennai"]
[Date "2022.08.01"]
[Round "4.18"]
[White "Varela La Madrid, Tilsia Carolina"]
[Black "Brunello, Marina"]
[Result "0-1"]
[WhiteElo "2079"]
[BlackElo "2341"]
[Annotator "TA"]
[PlyCount "55"]
[EventDate "2022.??.??"]
[TimeControl "60"]

{[%evp 9,55,12,17,18,25,6,23,0,0,0,0,0,0,0,0,0,0,-65,0,-29,18,-61,-61,-60,-61,
-62,-59,-63,-31,-31,-17,-24,-8,-10,-6,-22,-8,-8,-8,-10,-9,-12,-7,-68,-58,-885,
-66,-802]} 1. e4 {[%emt 0:00:03]} c5 {[%emt 0:00:07]} 2. Nf3 {[%emt 0:00:06]}
d6 {[%emt 0:00:07]} 3. Bb5+ {[%emt 0:00:07]} Nd7 {[%emt 0:00:24]} 4. c4 {
[%emt 0:00:07]} Ngf6 {[%emt 0:06:40]} 5. Nc3 {[%emt 0:00:10]} e6 {[%emt 0:00:
00]} 6. O-O {[%emt 0:00:56] B51: Sicilian: Moscow Variation (3 Bb5+) without 3.
..Bd7.} Qc7 {[%emt 0:01:22]} 7. h3 {[%emt 0:01:48]} Be7 {[%emt 0:01:09]} 8. Ba4
{[%emt 0:06:52] White has an edge.} (8. Bxd7+ $5 Bxd7 9. d4 $11) 8... O-O {
[%emt 0:02:26]} 9. Qe2 {[%emt 0:01:34]} a6 {[%emt 0:02:49] [#]} 10. d4 $146 {
[%emt 0:02:10]} ({Predecessor:} 10. d3 b6 11. Nh2 Bb7 12. f4 Bc6 13. Bxc6 Qxc6
14. a4 Rfe8 15. e5 d5 16. exf6 Bxf6 {1-0 (44) Frolov,A (2393)-Ajay Krishna,S 
(2161) Pardubice 2018}) 10... cxd4 {[%emt 0:00:22]} 11. Nxd4 {[%emt 0:00:09]}
Nb6 {[%emt 0:00:10]} 12. Bb3 $1 {[%emt 0:00:24]} Bd7 {[%emt 0:00:01]} 13. Be3 {
[%emt 0:04:33]} (13. Nc2 $11) 13... Rac8 {[%emt 0:12:01]} (13... Rfc8 $15) 14.
Rac1 {[%emt 0:01:07]} Rfe8 {[%emt 0:00:05]} ({Resist} 14... Nxc4 15. Bxc4 Qxc4
{[#]} 16. Nd5 $1 exd5 17. Rxc4 Rxc4 18. exd5 $16) (14... Bd8 {was preferrable.}
) 15. Nb1 {[%emt 0:07:14]} ({White should play} 15. Qf3 $11) 15... Nxe4 $15 {
[%emt 0:03:46]} 16. Nxe6 {[%emt 0:00:42]} Bxe6 {[%emt 0:02:14]} 17. Bxb6 {
[%emt 0:01:16]} Qxb6 {[%emt 0:04:08]} 18. Qxe4 {[%emt 0:00:16]} Bg5 {[%emt 0:
00:00]} 19. Rce1 {[%emt 0:13:47]} Bf6 {[%emt 0:00:15] This bishop pair is nice.
} 20. Nc3 {[%emt 0:06:44]} Bxc3 {[%emt 0:05:19]} 21. bxc3 {[%emt 0:00:35]} Rc5
{[%emt 0:00:18]} 22. Qd4 {[%emt 0:02:22]} Qc7 {[%emt 0:02:48]} (22... Qc6 {
looks sharper.} 23. Re3 Rg5 24. g4 Re5) 23. Re3 {[%emt 0:00:35]} Rd8 {[%emt 0:
00:00]} 24. Rfe1 {[%emt 0:01:06]} a5 {[%emt 0:05:08]} 25. Re4 {[%emt 0:23:59]}
Rf8 {[%emt 0:05:19][%cal Ya5a4]} 26. a3 {[%emt 0:07:17]} (26. R1e3 $11) 26...
b5 {[%emt 0:02:07]} 27. Re5 $2 {[%emt 0:03:28] [#]} Bxc4 $2 {[%emt 0:03:31]} (
27... dxe5 $19 28. Qe4 f5) 28. Bxc4 $4 {[%emt 0:00:30] Weighted Error Value:
White=0.58/Black=0.44} 0-1

[Event "44th Chess Olympiad Women 2022"]
[Site "Chennai"]
[Date "2022.08.01"]
[Round "4.18"]
[White "Zimina, Olga"]
[Black "Otazo Sanchez, Annyd Gabriela"]
[Result "1-0"]
[WhiteElo "2340"]
[BlackElo "1932"]
[Annotator "TA"]
[PlyCount "92"]
[EventDate "2022.??.??"]
[TimeControl "60"]

{[%evp 13,92,44,43,19,15,8,9,20,24,0,29,29,43,52,49,58,61,41,65,68,70,62,92,72,
101,60,69,68,82,82,75,20,120,126,130,154,99,118,293,248,283,172,161,43,90,0,
156,132,153,146,467,460,508,502,405,325,309,306,29952,-743,29953,29954,29952,
29951,29943,29947,4722,12797,12504,11273,6143,5812,29980,29981,29981,29982,
29982,29983,29981,29982,29951]} 1. d4 {[%emt 0:00:05]} Nf6 {[%emt 0:00:08]} 2.
Nf3 {[%emt 0:00:05]} g6 {[%emt 0:00:18]} 3. Nc3 {[%emt 0:00:06]} Bg7 {[%emt 0:
00:00]} 4. e4 {[%emt 0:00:05]} d6 {[%emt 0:00:38]} 5. Be3 {[%emt 0:00:07]} O-O
{[%emt 0:02:05]} 6. h3 {[%emt 0:00:08]} e5 {[%emt 0:11:33]} 7. dxe5 {[%emt 0:
00:00]} dxe5 {[%emt 0:00:07]} 8. Bc4 {[%emt 0:12:02] Strongly threatening Qxd8.
B08: Pirc Defence: Classical System.} Qe7 {[%emt 0:08:27]} 9. O-O {[%emt 0:00:
00]} (9. Qd2 {keeps more tension.} Rd8 10. Bc5 Qe8 11. Qe2) 9... c6 {[%emt 0:
00:00]} 10. a4 {[%emt 0:03:15][%cal Ya2a4,Ya4a5] The position is equal.} Nbd7 {
[%emt 0:22:02]} 11. Qc1 {[%emt 0:19:27] [#]} Nb6 $146 {[%emt 0:00:00]} ({
Predecessor:} 11... Nc5 12. Nd2 Nh5 13. Nf3 Ne6 14. Rd1 Nef4 15. Rd2 Qf6 16.
Qd1 g5 17. Rd6 Qe7 {½-½ (48) Schaefer,M (2220)-Emmerich,D (2200) Hessen 1998}
) 12. Bd3 {[%emt 0:05:12]} Re8 {[%emt 0:03:05]} 13. a5 {[%emt 0:00:00]} Nbd7 {
[%emt 0:00:13][%cal Yb6d7,Yd7f8,Yf8e6]} 14. Na4 {[%emt 0:00:00]} Nf8 {[%emt 0:
02:39]} 15. Rd1 {[%emt 0:02:27]} Qc7 {[%emt 0:05:23]} 16. b4 {[%emt 0:01:23]}
Ne6 {[%emt 0:01:53]} 17. Nc5 {[%emt 0:04:43]} Nh5 {[%emt 0:00:00]} 18. Bf1 {
[%emt 0:03:04]} Nhf4 {[%emt 0:02:01]} 19. Ra3 {[%emt 0:00:40]} h6 {[%emt 0:11:
16]} 20. Kh2 {[%emt 0:00:41]} Kh7 {[%emt 0:03:14]} 21. g3 {[%emt 0:00:21]} Nh5
{[%emt 0:00:53]} 22. Rad3 {[%emt 0:03:29]} (22. Nd2 $16) 22... b6 {[%emt 0:01:
48] [#]} (22... Nf6 $11) 23. Rd7 $1 $16 {[%emt 0:01:28]} Bxd7 {[%emt 0:00:46]}
24. Rxd7 {[%emt 0:00:05]} Qb8 {[%emt 0:03:39]} (24... Qc8 25. Ba6 Qb8 26. Nxe6
Rxe6 27. Bc4 $14 (27. Rxf7 Rf6 $11)) 25. Nxe6 {[%emt 0:00:53]} fxe6 {[%emt 0:
01:03]} (25... Rxe6 $16 26. Bc4 (26. Rxf7 Rf6 $11) 26... Rd6 27. Rxf7 Rf6) 26.
Bxh6 $18 {[%emt 0:00:54]} Rf8 {[%emt 0:00:49]} 27. Ng5+ {[%emt 0:06:12]} Kxh6 {
[%emt 0:00:27]} 28. Nxe6+ {[%emt 0:00:22]} ({Better is} 28. Kg1 $18) 28... Kh7
$14 {[%emt 0:00:07]} 29. Qg5 {[%emt 0:01:52]} (29. Bc4 $1 $16 Qe8 30. Rf7 (30.
Nxf8+ Qxf8 31. Qe1 bxa5 $17) 30... Rxf7 31. Ng5+ Kh8 32. Nxf7+ Kh7 33. Ng5+ Kh8
34. Nf7+ Kh7 35. Ng5+ Kh8 36. Nf7+) 29... Qe8 $2 {[%emt 0:02:17] [#] Black is
now going downhill.} (29... Qc8 $11 30. Qe7 (30. Nxf8+ Qxf8 31. Kg1 c5 $15)
30... Qe8 $1 31. Qxf8 Qxf8 32. Nxf8+ Rxf8) 30. Re7 $1 $36 {[%emt 0:00:23]
White has strong initiative. 0x0.0005ebce4847dp-1022s more active pieces.} (30.
Nxf8+ Qxf8 31. Kg2 c5 $15) 30... Rxf2+ {[%emt 0:00:20]} 31. Kg1 {[%emt 0:00:03]
} Rxf1+ {[%emt 0:00:11]} (31... Rf7 $16 {is tougher.} 32. Rxe8 Rxe8 33. Nxg7
Kxg7) 32. Kxf1 $18 {[%emt 0:00:03]} Qg8 {[%emt 0:00:21]} 33. g4 {[%emt 0:03:57]
} Rf8+ {[%emt 0:00:00]} 34. Kg1 {[%emt 0:00:16] The board is on fire.} ({
Worse is} 34. Nxf8+ Qxf8+ 35. Ke1 (35. Kg1 Nf4 $17) 35... Nf4 36. Qxe5 Nxh3 $11
) 34... Rf7 {[%emt 0:00:00]} 35. gxh5 {[%emt 0:00:16]} gxh5 {[%emt 0:00:20]} (
35... Bh6 $18 36. Qf6 Rxe7 37. Qxe7+ Kh8 38. Qf6+ Kh7 39. Qe7+ (39. Qxe5 gxh5+
40. Kf2 Qf7+ 41. Kg3 bxa5 $16) 39... Kh8) 36. Qxh5+ {[%emt 0:01:15]} Bh6+ {
[%emt 0:00:07] [#]} 37. Ng5+ $1 {[%emt 0:00:02]} Qxg5+ {[%emt 0:01:16]} 38.
Qxg5 {[%emt 0:00:00]} Bxg5 {[%emt 0:00:12]} 39. Rxf7+ {[%emt 0:00:04] KR-KB}
Kg6 {[%emt 0:00:26]} 40. Rxa7 {[%emt 0:00:20]} bxa5 {[%emt 0:00:09]} 41. Rxa5 {
[%emt 0:30:04] White wants to mate with Ra6.} Be3+ {[%emt 0:03:05]} 42. Kg2 {
[%emt 0:00:00] Threatening mate with Ra6.} Bd4 {[%emt 0:00:07]} 43. Ra6 {
[%emt 0:00:00] White mates.} Kg5 {[%emt 0:00:05]} 44. Rxc6 {[%emt 0:00:00]} Kf4
{[%emt 0:00:09]} 45. b5 {[%emt 0:00:00][%cal Yb4b5,Yb5b6]} Kxe4 {[%emt 0:00:11]
} 46. b6 {[%emt 0:00:00]} Kd5 {[%emt 0:01:00] Weighted Error Value: White=0.20
(precise) /Black=0.69} 1-0

[Event "44th Chess Olympiad Women 2022"]
[Site "Chennai"]
[Date "2022.08.01"]
[Round "4.19"]
[White "Avelino, Camila Biscaya"]
[Black "Vidic, Teja"]
[Result "0-1"]
[WhiteElo "1863"]
[BlackElo "2099"]
[Annotator "NA RC"]
[PlyCount "54"]
[EventDate "2022.??.??"]
[TimeControl "60"]

1. e4 {[%emt 0:00:16]} c6 {[%emt 0:00:12]} 2. d4 {[%emt 0:00:53]} d5 {[%emt 0:
00:00]} 3. exd5 {[%emt 0:00:38]} cxd5 {[%emt 0:00:06]} 4. Bd3 {[%emt 0:00:50]}
Nc6 {[%emt 0:00:06]} 5. c3 {[%emt 0:00:44]} e6 {[%emt 0:00:11]} 6. Bf4 {
[%emt 0:01:28]} Nge7 {[%emt 0:00:18]} 7. Nd2 {[%emt 0:06:23]} Ng6 {[%emt 0:00:
00]} 8. Bg3 {[%emt 0:00:48]} Bd6 {[%emt 0:00:05]} 9. Ndf3 {[%emt 0:32:18]} Nf4
{[%emt 0:01:43]} 10. Ne2 {[%emt 0:00:18]} Nxd3+ {[%emt 0:10:01]} 11. Qxd3 {
[%emt 0:00:17]} Qc7 {[%emt 0:00:05]} 12. O-O {[%emt 0:00:59]} O-O {[%emt 0:00:
00]} 13. Bxd6 {[%emt 0:03:48]} Qxd6 {[%emt 0:00:05]} 14. Ng5 {[%emt 0:03:11]}
g6 {[%emt 0:01:14]} 15. Qh3 {[%emt 0:01:32]} h5 {[%emt 0:04:29]} 16. Qh4 {
[%emt 0:01:19]} Kg7 {[%emt 0:05:27]} 17. f4 {[%emt 0:16:24]} Bd7 {[%emt 0:00:
00]} 18. g4 {[%emt 0:15:44]} Rh8 {[%emt 0:03:37]} 19. f5 {[%emt 0:00:47]} f6 {
[%emt 0:17:40]} 20. fxe6 {[%emt 0:04:32]} fxg5 {[%emt 0:03:33]} 21. Rf7+ {
[%emt 0:02:43]} Kh6 {[%emt 0:00:13]} 22. Qf2 {[%emt 0:01:15]} Bxe6 {[%emt 0:00:
00]} 23. Qf6 {[%emt 0:00:36]} Rhg8 {[%emt 0:03:20]} 24. Ng3 {[%emt 0:01:53]}
Rad8 {[%emt 0:00:56]} 25. Re1 {[%emt 0:02:36]} Bxg4 {[%emt 0:01:01]} 26. Nxh5 {
[%emt 0:00:43]} Bxh5 {[%emt 0:01:56]} 27. Re6 {[%emt 0:00:09]} Qf4 {[%emt 0:00:
00]} 0-1

[Event "44th Chess Olympiad Women 2022"]
[Site "Chennai"]
[Date "2022.08.01"]
[Round "4.19"]
[White "Janzelj, Lara"]
[Black "Silva, Mariana Sofia T."]
[Result "1-0"]
[WhiteElo "2215"]
[BlackElo "1912"]
[Annotator "NA RC"]
[PlyCount "65"]
[EventDate "2022.??.??"]
[TimeControl "60"]

1. Nf3 {[%emt 0:00:04]} d5 {[%emt 0:00:07]} 2. g3 {[%emt 0:00:13]} c5 {[%emt 0:
00:00]} 3. Bg2 {[%emt 0:00:05]} Nc6 {[%emt 0:00:34]} 4. O-O {[%emt 0:02:29]} e5
{[%emt 0:03:02]} 5. d3 {[%emt 0:00:13]} Be7 {[%emt 0:00:08]} 6. Nbd2 {[%emt 0:
00:00]} Be6 {[%emt 0:00:44]} 7. e4 {[%emt 0:00:25]} d4 {[%emt 0:00:07]} 8. Nc4
{[%emt 0:00:54]} Qc7 {[%emt 0:04:11]} 9. a4 {[%emt 0:01:22]} h5 {[%emt 0:00:22]
} 10. h3 {[%emt 0:07:55]} f6 {[%emt 0:06:37]} 11. Nh4 {[%emt 0:03:19]} g5 {
[%emt 0:04:31]} 12. Nf5 {[%emt 0:01:21]} O-O-O {[%emt 0:03:01]} 13. Bd2 {
[%emt 0:08:22]} Bf8 {[%emt 0:10:59]} 14. a5 {[%emt 0:05:12]} Nge7 {[%emt 0:00:
00]} 15. a6 {[%emt 0:02:19]} b6 {[%emt 0:00:55]} 16. Na3 {[%emt 0:03:46]} Nxf5
{[%emt 0:07:08]} 17. exf5 {[%emt 0:00:04]} Bd5 {[%emt 0:00:10]} 18. Bxd5 {
[%emt 0:02:18]} Rxd5 {[%emt 0:00:02]} 19. Qf3 {[%emt 0:03:29]} Qd7 {[%emt 0:00:
00]} 20. Nc4 {[%emt 0:03:20]} Kb8 {[%emt 0:04:19]} 21. Kg2 {[%emt 0:04:40]} g4
{[%emt 0:07:58]} 22. hxg4 {[%emt 0:00:09]} hxg4 {[%emt 0:00:05]} 23. Qxg4 {
[%emt 0:00:48]} Ne7 {[%emt 0:00:21]} 24. Rh1 {[%emt 0:03:35]} Rg8 {[%emt 0:00:
00]} 25. Qe4 {[%emt 0:04:00]} Nxf5 {[%emt 0:05:45]} 26. Qf3 {[%emt 0:08:27]}
Qe6 {[%emt 0:03:34]} 27. Rh7 {[%emt 0:01:54]} Bh6 {[%emt 0:13:22]} 28. Rb7+ {
[%emt 0:06:04]} Ka8 {[%emt 0:00:23]} 29. Rh1 {[%emt 0:00:24]} Bxd2 {[%emt 0:00:
00]} 30. Rhh7 {[%emt 0:01:32]} Nh4+ {[%emt 0:04:23]} 31. Kf1 {[%emt 0:02:13]}
Qh3+ {[%emt 0:00:44]} 32. Ke2 {[%emt 0:00:04]} Rd7 {[%emt 0:00:38]} 33. Rbxd7+
{[%emt 0:00:52]} 1-0